Cogmind - Beta 16 --- EXPLORER MODE // 2025.12.01 @ 08:32:29 Player: K.K.Y. Result: Destroyed by Y-54 Guardian with Gatling Laser Performance ------------- Evolutions (0) 0 Regions Visited (4) 800 Robots Destroyed (33) 165 Value Destroyed (813) 813 Prototype IDs (12) 240 Alien Tech Used (0) 0 Bonus (-44) -44 TOTAL SCORE: 1974 Bonus ------- Friendly Fire -44 Cogmind --------- Core Integrity 0/250 Matter 295/300 Energy 290/290 System Corruption 0% Temperature Cool (6) Movement Treading (317) Ox2 Location -7/Recycling Parts ------- > --- POWER (1) -------- Improved Deuterium Engine > --- PROPULSION (2) --- Armored Treads Advanced Treads > --- UTILITY (3) ------ Huge Storage Unit > --- WEAPON (2) ------- Heavy Battle Rifle Makeshift Spear > --- INVENTORY (25) --- Medium Storage Unit Machine Analyzer Machine Analyzer Improved Terrain Scan Processor Transmission Jammer Scrap Shield SUBCON Basin (Full) Peak State ------------ > --- POWER ------------ Improved Deuterium Engine > --- PROPULSION ------- Armored Treads Advanced Treads > --- UTILITY ---------- Huge Storage Unit Scrap Shield > --- WEAPON ----------- Heavy Battle Rifle Makeshift Spear > --- INVENTORY -------- Improved Ion Engine Medium Storage Unit Machine Analyzer Machine Analyzer Improved Terrain Scan Processor Transmission Jammer Scrap Shield SUBCON Basin [Rating: 43] Favorites ----------- Power Light Ion Engine Engine Light Ion Engine Propulsion Spiked Treads Treads Spiked Treads Leg Aluminum Leg Hover Unit Hover Unit Flight Unit Flight Unit Utility Scrap Shield Device ECM Suite Storage Huge Storage Unit Processor Signal Interpreter Protection Scrap Shield Weapon Makeshift Spear Energy Gun Medium Laser Energy Cannon Beam Cannon Ballistic Gun Heavy Battle Rifle Special Weapon Mining Laser Piercing Weapon Makeshift Spear Build | -11 -10 -10 -10 -7 ------- Run | Yrd Mat Min Sub Rec Slots Evolved 1 | . 1 . . . Power . | . . . . . Propulsion . | . . . . . Utility 1 | . 1 . . . Weapon . | . . . . . Parts Attached 35 | 4 10 2 15 4 Power 6 | . 1 1 2 2 Engine 6 | . 1 1 2 2 Core . | . . . . . Reactor . | . . . . . Propulsion 11 | 2 4 . 3 2 Treads 3 | . . . 1 2 Leg 4 | 2 . . 2 . Wheel . | . . . . . Hover 2 | . 2 . . . Flight 2 | . 2 . . . Utility 10 | . 3 1 6 . Device 5 | . 2 1 2 . Storage 1 | . . . 1 . Processor 1 | . 1 . . . Hackware . | . . . . . Protection 3 | . . . 3 . Artifact . | . . . . . Weapon 8 | 2 2 . 4 . Energy Gun 2 | 2 . . . . Energy Cannon 2 | . 2 . . . Ballistic Gun 2 | . . . 2 . Ballistic Cannon . | . . . . . Launcher . | . . . . . Special Weapon 1 | . . . 1 . Impact Weapon . | . . . . . Slashing Weapon . | . . . . . Piercing Weapon 1 | . . . 1 . Special Melee Weapon . | . . . . . Unidentified Prototypes . | . . . . . Parts Lost 12 | . 1 1 9 1 Power 2 | . . . 2 . Propulsion 3 | . . . 3 . Utility 5 | . . 1 3 1 Weapon 2 | . 1 . 1 . Highest Loss Streak 4 | . 1 1 4 1 To Critical Strikes . | . . . . . Average Backups 3 | 2 4 4 3 4 Power . | . . . . . Propulsion . | . . . . . Utility 3 | 1 2 3 3 4 Weapon . | . . 1 . . Tool/Special . | . . . . . Unused Backups 6 | . . . . 6 Power . | . . . . . Propulsion . | . . . . . Utility 6 | . . . . 6 Weapon . | . . . . . Tool/Special . | . . . . . Average Slot Usage (%) 73 | . 63 84 71 85 Engine 8 | . 1 12 8 12 Treads 7 | . . . 6 23 Leg 4 | . 5 . 4 . Hover 1 | . 2 25 . . Flight 1 | . 16 . . . Device 10 | . 8 21 10 . Storage 3 | . . . 2 12 Protection 9 | . . . 11 12 Energy Cannon 2 | . 13 23 . . Ballistic Gun 9 | . . . 10 12 Piercing Weapon 10 | . . . 11 12 Peak Build Rating 43 | 4 8 14 34 43 Average Rating 19 | 2 5 10 19 39 On Entrance 11 | . 4 7 10 34 Avg Prop Armor Cover (%) . | . . . . . Naked Turns . | . . . . . Heaviest Build 114 | 4 8 12 107 114 Greatest Support 42 | 20 20 12 20 42 Greatest Overweight (x) 5 | . 1 . 5 5 Average Overweight (x) 1 | . . . 1 2 Largest Inventory Capacity 25 | 5 5 5 25 25 Average Capacity 10 | 5 5 5 9 25 Most Carried 23 | 5 5 5 19 23 Average Carried 8 | 2 4 4 8 20 Final Capacity 25 | 5 5 5 25 25 Final Carried 22 | 3 5 5 19 22 Class Distribution -------------------- 91% | Hacker-Mutant 8% | Scavenger-Mutant Dominant Class ---------------- Hacker-Mutant | -10/Materials Hacker-Mutant | -10/Mines Hacker-Mutant | -10/Subcaves Hacker-Mutant | -7/Recycling Resources | -11 -10 -10 -10 -7 ----------- Run | Yrd Mat Min Sub Rec Matter Collected 618 | 232 92 56 208 30 Remotely . | . . . . . Salvage Created 1336 | . 577 111 514 134 Parts 71 | . 22 6 35 8 Haulers Intercepted 2 | . 2 . . . Recyclers Shooed 4 | . 2 . . 2 Parts Field Recycled . | . . . . . Retrieved Matter . | . . . . . Parts Self-Destructed . | . . . . . Prevented . | . . . . . Parts Restored . | . . . . . Kills | -11 -10 -10 -10 -7 ------- Run | Yrd Mat Min Sub Rec Combat Hostiles Destroyed 23 | . 7 3 11 2 Melee 7 | . . . 5 2 Guns 6 | . 5 . 1 . Cannons 10 | . 2 3 5 . Classes Destroyed 10 | . 5 1 3 1 Hauler 2 | . 2 . . . Recycler 4 | . 3 1 . . Turret 2 | . . . 2 . Watcher 2 | . 2 . . . Swarmer 7 | . 4 2 1 . Grunt 3 | . 3 . . . Sentry 2 | . . . . 2 Subdweller 10 | . . . 10 . Zionite 1 | . . . 1 . Assembled 1 | . . 1 . . Best Kill Streak 5 | . 5 3 2 1 Combat Bots Only 2 | . 2 2 2 1 Max Kills in Single Turn 1 | . 1 1 1 1 Gunslinging . | . . . . . Exploded . | . . . . . Melee 1 | . . . 1 1 Uniques/NPCs Destroyed . | . . . . . Combat | -11 -10 -10 -10 -7 -------- Run | Yrd Mat Min Sub Rec Hostile Shots Fired 239 | . 28 20 161 30 Missed 80 | . 10 7 54 9 Hits 159 | . 18 13 107 21 Melee 2 | . . 2 . . Projectile 157 | . 18 11 107 21 Critical Strikes 5 | . . 1 4 . Damage Taken 1387 | . 162 125 1021 79 Core 253 | . 34 42 158 19 Absorbed by Shields . | . . . . . Ignored by Resistances 853 | . 105 78 612 58 Core Remaining (%) 100 | 100 . . . . Volleys Fired 93 | . 38 10 45 . Largest 2 | . 2 2 2 . Hottest 120 | . 120 120 120 . Shots Fired 122 | . 53 20 49 . Gun 52 | . 36 . 16 . Cannon 67 | . 17 20 30 . Launcher . | . . . . . Special 3 | . . . 3 . Kinetic 16 | . . . 16 . Thermal 97 | . 44 20 33 . Explosive . | . . . . . Electromagnetic 9 | . 9 . . . Robot Hit Streak 25 | . 25 5 20 . Robot Miss Streak 2 | . 1 2 2 . Penetration Max . | . . . . . Secondary Targets . | . . . . . Shots Hit Robots 124 | . 45 13 58 8 Core Hits 48 | . 20 6 20 2 Critical Kills . | . . . . . Critical Parts Destroyed . | . . . . . Critical Strikes 6 | . 3 . 2 1 Burn 1 | . 1 . . . Corrupt 2 | . 2 . . . Impale 3 | . . . 2 1 Melee Attacks 36 | . . . 28 8 Impact . | . . . . . Slashing . | . . . . . Piercing 36 | . . . 28 8 Sneak Attacks 4 | . . . 1 3 Combat Hostiles . | . . . . . Follow-up Attacks . | . . . . . Damage Inflicted 2436 | . 704 249 1177 306 Guns 621 | . 381 . 240 . Cannons 928 | . 247 242 439 . Explosions 76 | . 76 . . . Melee 780 | . . . 474 306 Ramming 7 | . . 7 . . Kinetic 240 | . . . 240 . Thermal 1315 | . 610 242 463 . Explosive . | . . . . . Electromagnetic 94 | . 94 . . . Impact . | . . . . . Slashing . | . . . . . Piercing 780 | . . . 474 306 Highest Corruption . | . . . . . Average Corruption . | . . . . . Corruption Purged . | . . . . . Corruption Blocked . | . . . . . Overload Shots . | . . . . . Overflow Damage 38 | . 6 28 3 1 Projectiles 34 | . 6 28 . . Explosions . | . . . . . Melee 4 | . . . 3 1 Knockbacks . | . . . . . Impact . | . . . . . Kinetic . | . . . . . Secondary . | . . . . . Self-Inflicted Damage 21 | . 18 3 . . Shots 1 | . 1 . . . Rammed 1 | . . 1 . . Targets Rammed 1 | . . 1 . . Kicked . | . . . . . Crushed . | . . . . . Highest Temperature 199 | . 153 199 43 . Average Temperature 51 | . 44 74 33 . Received Heat Transfer 685 | . 60 67 522 36 Siege Activations . | . . . . . Martial Activations . | . . . . . Shielding Activations . | . . . . . Robots Disrupted . | . . . . . Combat Hostiles . | . . . . . Robots Corrupted . | . . . . . Combat Hostiles . | . . . . . Parts Fried . | . . . . . Impact Corruptions . | . . . . . Robots Melted . | . . . . . Combat Hostiles . | . . . . . Parts Melted 5 | . 1 . 4 . Heat Transferred 3036 | . 1543 518 975 . Parts Sabotaged . | . . . . . Parts Stolen . | . . . . . Parts Stripped . | . . . . . Power Chain Reactions 1 | . 1 . . . Alert | -11 -10 -10 -10 -7 ------- Run | Yrd Mat Min Sub Rec Maximum Alert Level . | . . . . . Low Security (%) 100 | 100 100 100 . 100 Level 1 . | . . . . . Level 2 . | . . . . . Level 3 . | . . . . . Level 4 . | . . . . . Level 5 . | . . . . . High Security . | . . . . . Max Security . | . . . . . Peak Influence 93 | . 93 51 . 20 Initial 1 | . . . . 1 Average 9 | . 25 4 . . Influence Increases 445 | . 229 56 120 40 Destroy 0b10 Robot/C 280 | . 140 40 60 40 Destroy 0b10 Robot/NC 40 | . 35 5 . . Destroy Leader 48 | . 38 10 . . Allied During Kill 1 | . . 1 . . Destroy Structure 1 | . 1 . . . Lose Combat Pursuer 75 | . 15 . 60 . Influence Decreases 445 | . 229 56 115 45 Entered New Map 4 | . . . . 4 Time Decay 421 | . 219 56 105 41 Lost Part 20 | . 10 . 10 . Squads Dispatched . | . . . . . Investigation . | . . . . . Extermination . | . . . . . Reinforcement . | . . . . . Assault . | . . . . . Garrison . | . . . . . Intercept . | . . . . . Searches Triggered . | . . . . . Construction Impeded . | . . . . . Haulers Reinforced . | . . . . . Active Scanning Responses . | . . . . . Cargo Convoy Interrupts . | . . . . . Stealth | -11 -10 -10 -10 -7 --------- Run | Yrd Mat Min Sub Rec Distress Signals 2 | . 1 1 . . Communications Jammed . | . . . . . Distress Signals . | . . . . . Times Spotted 40 | . 12 10 16 2 Peak Tracking Total 7 | . 3 7 2 1 Tactical Retreats 5 | . 1 . 4 . Traps | -11 -10 -10 -10 -7 ------- Run | Yrd Mat Min Sub Rec Traps Triggered 2 | . 1 . 1 . Indirectly . | . . . . . Trap Hack Attempts . | . . . . . Triggered . | . . . . . Disarmed . | . . . . . Reprogrammed . | . . . . . Reused . | . . . . . Traps Extracted . | . . . . . Installed . | . . . . . Triggered . | . . . . . Machines | -11 -10 -10 -10 -7 ---------- Run | Yrd Mat Min Sub Rec Machines Disabled . | . . . . . Max in Single Turn . | . . . . . Machines Repaired . | . . . . . Machines Dismantled . | . . . . . Machines Sabotaged . | . . . . . Overloaded Fab Kills . | . . . . . Hacking | -11 -10 -10 -10 -7 --------- Run | Yrd Mat Min Sub Rec Machines Accessed 4 | . . . 4 . Terminals . | . . . . . Fabricators . | . . . . . Repair Stations . | . . . . . Recycling Units . | . . . . . Scanalyzers . | . . . . . Garrison Access . | . . . . . Total Hacks 9 | . . . 9 . Successful 9 | . . . 9 . Failed . | . . . . . Catastrophic . | . . . . . Database Lockouts . | . . . . . Manual . | . . . . . Terminals . | . . . . . Fabricators . | . . . . . Repair Stations . | . . . . . Recycling Units . | . . . . . Scanalyzers . | . . . . . Garrison Access . | . . . . . Terminal Hacks 9 | . . . 9 . Record 6 | . . . 6 . Open Door 1 | . . . 1 . Proto ID Catalog 1 | . . . 1 . Release Object 1 | . . . 1 . Fabricator Hacks . | . . . . . Repair Station Hacks . | . . . . . Recycling Unit Hacks . | . . . . . Scanalyzer . | . . . . . Garrison Access Hacks . | . . . . . Unauthorized Hacks . | . . . . . Terminals . | . . . . . Fabricators . | . . . . . Repair Stations . | . . . . . Recycling Units . | . . . . . Scanalyzers . | . . . . . Garrison Access . | . . . . . Data Cores Recovered . | . . . . . Used . | . . . . . Hacking Detections . | . . . . . Full Trace Events . | . . . . . Feedback Events . | . . . . . Feedback Blocked . | . . . . . Robot Schematics Acquired . | . . . . . Robots Built . | . . . . . Authchips . | . . . . . Time . | . . . . . Total Robot Build Rating . | . . . . . Part Schematics Acquired . | . . . . . Parts Built . | . . . . . Authchips . | . . . . . Time . | . . . . . Total Part Build Rating . | . . . . . Part Studies Acquired . | . . . . . Parts Repaired . | . . . . . Time . | . . . . . Parts Recycled . | . . . . . Recycled Matter . | . . . . . Retrieved Matter . | . . . . . Retrieved Components . | . . . . . Parts Scanalyzed . | . . . . . Part Schematics Acquired . | . . . . . Parts Damaged . | . . . . . Bothacking | -11 -10 -10 -10 -7 ------------ Run | Yrd Mat Min Sub Rec Used RIF Installer . | . . . . . Robots Hacked . | . . . . . Non-combat . | . . . . . Combat . | . . . . . Robot Hacks Applied . | . . . . . Relay Couplers Released . | . . . . . Fabnet Peak Effective % . | . . . . . Robots Rewired . | . . . . . Allies Hacked . | . . . . . Hacks Repelled . | . . . . . Allies | -11 -10 -10 -10 -7 -------- Run | Yrd Mat Min Sub Rec Total Allies 3 | . . 3 . . Largest Group 3 | . . 3 2 . Highest-Rated Group 40 | . . 40 24 . Highest-Rated Ally 16 | . . 16 16 . Total Orders . | . . . . . Ally Attacks 40 | . . 36 4 . Total Damage 350 | . . 302 48 . Kills 8 | . . 8 . . Allies Corrupted . | . . . . . Allies Melted . | . . . . . Intel | -11 -10 -10 -10 -7 ------- Run | Yrd Mat Min Sub Rec Active Infowar (turns) 268 | . 198 49 21 . Structural 247 | . 198 49 . . ECM 21 | . . . 21 . Robot Analysis Total . | . . . . . Derelict Logs Recovered 3 | . . 1 2 . Drone Launches . | . . . . . Drone Recoveries . | . . . . . Exploration | -11 -10 -10 -10 -7 ------------- Run | Yrd Mat Min Sub Rec Turns Passed 7168 | 53 435 424 5710 546 Spaces Moved 3172 | 45 507 468 1998 154 Core 38 | 16 . . 22 . Treads 1041 | . . . 887 154 Legs 1141 | 29 52 . 1060 . Wheels . | . . . . . Hover 573 | . 76 468 29 . Flight 379 | . 379 . . . Fastest Speed 37 | 50 37 56 56 317 Average Speed 203 | 95 49 56 269 334 Slowest Speed 660 | 120 120 56 660 660 Overloaded Moves . | . . . . . Propulsion Burnouts . | . . . . . Robots Hopped 1 | . 1 . . . Potential Cave-ins . | . . . . . Cave-ins Triggered . | . . . . . Exploration Rate (%) 62 | 3 70 95 96 50 Regions Visited 4 Branch Regions 3 Pre-discovered Areas 2 | . . 1 1 . Known Exits Taken 4 | 1 1 1 1 . Unknown Exits Taken . | . . . . . Scrap Searched 7 | . . 1 6 . Spaces Dug . | . . . . . Terrain Destroyed 1 | . 1 . . . Melee . | . . . . . Projectile . | . . . . . AOE 1 | . 1 . . . Terrain Rammed . | . . . . . Walls Destroyed . | . . . . . Machines Disabled . | . . . . . Actions | -11 -10 -10 -10 -7 --------- Run | Yrd Mat Min Sub Rec Total 3708 | 54 635 609 2234 176 Wait 324 | . 67 122 135 . Move 3166 | 44 504 467 1997 154 Hop 1 | . 1 . . . Pick Up 24 | 6 6 1 4 7 Fast Attach 19 | 1 7 2 9 . Attach 14 | 3 3 1 6 1 Detach 5 | . 2 1 2 . Swap 6 | . . 1 2 3 Drop 18 | . 7 2 6 3 Fire 93 | . 38 10 45 . Melee 36 | . . . 28 8 Ram 1 | . . 1 . . Kick . | . . . . . Crush . | . . . . . Escape Stasis . | . . . . . Rewire 1 | . . 1 . . Trap . | . . . . . Miscellaneous . | . . . . . Route ------- -11/Scrapyard -10/Materials (discovered 3 exits: *Mat / *Min x2) -10/Mines (discovered 3 exits: *Mat x2 / *Sub) -10/Subcaves (discovered 3 exits: *Mat x2 / *Rec) -7/Recycling (discovered 1 exit: *Fac) History --------- Turn | Location | Event 4 | -11/Scrapyard | Identified exit to Materials 4 | -11/Scrapyard | Discovered exit to Materials (range 15) 54 | -11/Scrapyard | Entered Materials 54 | -10/Materials | Evolved 1 slot: Utility x1 234 | -10/Materials | Identified exit to Mines 234 | -10/Materials | Discovered exit to Mines (range 7) 296 | -10/Materials | Discovered exit to Mines (range 3) 312 | -10/Materials | Build established: Hacker-Mutant 457 | -10/Materials | Identified exit to Materials 457 | -10/Materials | Discovered exit to Materials (range 5) 489 | -10/Materials | Entered Mines 490 | -10/Mines | Assembled infested the area 490 | -10/Mines | Assisted by bots powering up and referring to "LRC-V3" 495 | -10/Mines | Assisted by a Guerilla fighting off Assembled 608 | -10/Mines | Discovered exit to Materials (range 9) 630 | -10/Mines | Found a hidden stash of uninstalled traps 642 | -10/Mines | Learned 2 Materials zone layouts 750 | -10/Mines | Discovered exit to Materials (range 8) 862 | -10/Mines | Learned location of Storage (-7) 897 | -10/Mines | Identified exit to Subcaves 897 | -10/Mines | Discovered exit to Subcaves (range 6) 913 | -10/Mines | Entered Subcaves 913 | -10/Subcaves | Accompanied by 2 allies 914 | -10/Subcaves | Approached by a straggling Scientist 956 | -10/Subcaves | Core integrity fell below 50% 975 | -10/Subcaves | Lost 3 allies 1018 | -10/Subcaves | Lost 4 parts (1p2n1w) 1083 | -10/Subcaves | Learned location of Zion (-6) 1083 | -10/Subcaves | Met a Zionite searching for "candidates" 1161 | -10/Subcaves | Core integrity fell below 20% 1759 | -10/Subcaves | Build established: Scavenger-Mutant 1785 | -10/Subcaves | Shifting Twisted Machinery released Sub. Machine Gun 1789 | -10/Subcaves | Shifting Twisted Machinery released Mak. Light Armor Plating 1813 | -10/Subcaves | Learned Materials terminal intel 1860 | -10/Subcaves | Identified exit to Materials 1860 | -10/Subcaves | Discovered exit to Materials (range 13) 2174 | -10/Subcaves | Build established: Hacker-Mutant 2469 | -10/Subcaves | Identified exit to Recycling 2469 | -10/Subcaves | Discovered exit to Recycling (range 10) 2582 | -10/Subcaves | Visited Clippyterm 2586 | -10/Subcaves | Learned 40 Factory zone layouts 2766 | -10/Subcaves | A swath of the cavern ceiling suddenly collapsed 3420 | -10/Subcaves | Visited 4L-MR0's lab 3640 | -10/Subcaves | Shifting Twisted Machinery released Battle Cannon 3653 | -10/Subcaves | Shifting Twisted Machinery released Sub. Optics 4043 | -10/Subcaves | Shifting Twisted Machinery released Mak. Kinetic Plating 4147 | -10/Subcaves | Shifting Twisted Machinery released Sub. Power Source 5219 | -10/Subcaves | Found SUBCON Basin 5737 | -10/Subcaves | Learned Materials trap positions 6623 | -10/Subcaves | Entered Recycling 7156 | -7/Recycling | Identified exit to Factory 7156 | -7/Recycling | Discovered exit to Factory (range 16) 7169 | -7/Recycling | Destroyed by Y-54 Guardian with Gatling Laser Last Messages --------------- 07039_ R-06 Scavenger collects Imp. Heat Sink. 07041_ Sneak attack on R-06 Scavenger. 07043_ Destroyed Com. Wheel. 07051_ R-06 Scavenger collects Lgt. Treads. 07053_ R-06 Scavenger collects Flak Gun. 07110_ Y-54 Guardian springs to life. 07112_ Y-54 Guardian suffers critical hit (Impale). 07112_ Y-54 Guardian destroyed. 07121_ Acquired Imp. Deuterium Engine. 07124_ Dropped Imp. Ion Engine. 07131_ R-06 Scavenger collects Imp. Light Armor Plating. 07134_ R-06 Scavenger collects Lgt. Treads. 07137_ R-06 Scavenger collects Gatling Laser. 07144_ R-06 Scavenger collects Imp. Ion Engine. 07156_ EXIT=FOUND: FACTORY 07162_ Sneak attack on Y-54 Guardian. 07162_ Y-54 Guardian springs to life. 07166_ Scrap Shield destroyed. Map ----- +----------------------------------------------------+ | ????????????????????????????? | | ????????????????????????????? | | ????????????????????????????? | | ????????????????????????????? | | ????????????????????????????? | | ????????????????????????????? | | ????????????????????????????? | | ????????????????????????????? | | ????????????????????????????? | | ????????????????????????????? | | ???? ?????????????????????? | | ???? < #????????????????????? | | ???? #????????????????????? | | ???? #????????????????????? | | ???? #????????????????????? | | ???? #????????????????????? | | ???? #????????????????????? | | ???# #????????????????????? | | ???# #????????????????????? | | ???# #????????????????????? | | ???# #????######??????????? | | ???# #??? #??????????? | | ???# #?? #??????????? | | ??## #? #??????????? | | ??#Y # #??????????? | | ???#@ u #??????????? | | ???# # #??????????? | | ???# #?????? #??????????? | | ???# #????????????????????? | | ???# #????????????????????? | | ???# #????????????????????? | | ???# #????????????????????? | | ?### #????????????????????? | | ?# ! #????????????????????? | | ?#!! #????????????????????? | | ?#! #????????????????????? | | ?### ###??????????????????? | | ??## !!#??????????????????? | | ??#% !!#??????????????????? | | ??## !!#??????????????????? | | ???# ###??????????????????? | | ???# #????????????????????? | | ???# #??########??????????? | | ??## #?! ! #??????????? | | ??#" # #??????????? | | ??#" + !! #??????????? | | ??#" # #??????????? | | ??#T #?????? #??????????? | | ??#" #????????????????????? | | ??#" #????????????????????? | +----------------------------------------------------+ Best States ------------- Heat Dissipation 35 Energy Generation 16 Energy Capacity 290 Matter Stores 300 Matter Capacity 300 Sight Range 16 Terrain Scan Density 10 ECM Strength 3 Armor Coverage 800 Resistance: KI 35 Resistance: TH 35 Resistance: EX 35 Resistance: EM 35 Resistance: I 35 Resistance: S 35 Resistance: P 35 Phase Shifting 5 Evasion (%) 62 Recoil Reduction 2 Offensive Hacking 20 Item Schematics ----------------- None Robot Schematics ------------------ None Fabricated ------------ Nothing Repaired ---------- Nothing Studied --------- None Alien Tech Used ----------------- None Achievements -------------- None Challenges ------------ None Game ------ Seed ColdAmuletJetlance Manual? 0 Play Time 00:23:49 Cumulative 148.7 hours Start 2025.12.01 @ 08:09:42 End 2025.12.01 @ 08:32:29 Sessions 1 Manual Loads 0 Difficulty Explorer Special Mode None Game No. 184 Rogue 0 Adventurer 0 Explorer 184 Win Type - Total 0 Types 0/0/0/0/0/0/0/0/0/0 Lore% 69 Gallery% 66 Achievement% 52 Wizard Run 0 Options --------- Layout 1 ASCII 0 Keyboard 0 Movement Mouse Keybinds 0 Fullscreen 1 Font 24/Smallcaps Map View 50x35 Zoom Use 0% Tactical HUD 1 Map Filters NONE Filters NONE Steam 1 RUN: b2feae83-e483-4996-a73d-3f6544b06f44